[Event "FIDE Womens World Cup 2021"]
[Site "Sochi"]
[Date "2021.07.24"]
[Round "4.5"]
[White "Dzagnidze, Nana"]
[Black "Shuvalova, Polina"]
[Result "1-0"]
[ECO "A06"]
[WhiteElo "2523"]
[BlackElo "2489"]
[Annotator "ChessBase"]
[PlyCount "99"]
[EventDate "2021.07.12"]
[EventType "k.o."]
[EventCountry "RUS"]
[SourceTitle "playchess.com"]
[Source "ChessBase"]
[SourceQuality "1"]
[TimeControl "600+10"]

1. c4 {[%emt 0:00:03]} Nf6 {[%emt 0:00:03]} 2. Nf3 {[%emt 0:00:07]} e6 {[%emt 0:00:02]} 3. b3 {[%emt 0:00:12]} d5 {[%emt 0:00:13]} 4. Bb2 {[%emt 0:00:02]} c5 {[%emt 0:00:11]} 5. e3 {[%emt 0:00:02]} Nc6 {[%emt 0:00:12]} 6. cxd5 {[%emt 0:00:02]} exd5 {[%emt 0:00:02]} 7. Bb5 {[%emt 0:00:02]} Bd6 {[%emt 0:00:05]} 8. h3 {[%emt 0:00:05]} O-O {[%emt 0:00:08]} 9. O-O {[%emt 0:00:01]} Bd7 {[%emt 0:00:29]} 10. d4 {[%emt 0:00:15]} a6 {[%emt 0:00:33]} 11. Be2 {[%emt 0:01:09]} cxd4 {[%emt 0:00:28]} 12. Nxd4 {[%emt 0:00:02]} Qe7 {[%emt 0:00:08]} 13. Nxc6 {[%emt 0:01:16]} bxc6 {[%emt 0:00:02]} 14. Nd2 {[%emt 0:00:04]} c5 {[%emt 0:00:12]} 15. Rc1 {[%emt 0:00:04]} a5 {[%emt 0:00:02]} 16. Nf3 {[%emt 0:00:08]} Be6 {[%emt 0:01:16]} 17. Bb5 {[%emt 0:01:59]} Rab8 {[%emt 0:00:50]} 18. Qe2 {[%emt 0:00:05]} Ne4 {[%emt 0:00:36]} 19. Rfd1 {[%emt 0:00:03]} Rb6 {[%emt 0:00:35]} 20. a4 {[%emt 0:00:24]} f6 {[%emt 0:01:17]} 21. Bc3 {[%emt 0:02:53]} Nxc3 {[%emt 0:01:04]} 22. Rxc3 {[%emt 0:00:01]} Bf7 {[%emt 0:00:04]} 23. Qd2 {[%emt 0:00:54]} Rd8 {[%emt 0:00:30]} 24. Rd3 {[%emt 0:00:09]} Bc7 {[%emt 0:01:57]} 25. Qxa5 {[%emt 0:00:53]} Bh5 {[%emt 0:01:32]} 26. Qd2 {[%emt 0:01:55]} Rbd6 {[%emt 0:00:38]} 27. Qc3 {[%emt 0:00:09]} f5 {[%emt 0:00:22]} 28. Kf1 {[%emt 0:00:15]} Bxf3 {[%emt 0:00:25]} 29. gxf3 {[%emt 0:00:02]} Kh8 {[%emt 0:00:20]} 30. Qxc5 {[%emt 0:00:15]} Bb6 {[%emt 0:00:04]} 31. Qb4 {[%emt 0:00:02]} d4 {[%emt 0:00:15]} 32. a5 {[%emt 0:00:49]} Ba7 {[%emt 0:00:01]} 33. Rxd4 {[%emt 0:00:14]} Bxd4 {[%emt 0:00:26]} 34. Rxd4 {[%emt 0:00:01]} Qc7 {[%emt 0:00:09]} 35. Rxd6 {[%emt 0:00:06]} Rxd6 {[%emt 0:00:02]} 36. Bc4 {[%emt 0:00:10]} f4 {[%emt 0:00:31]} 37. e4 {[%emt 0:00:51]} Rd1+ {[%emt 0:00:08]} 38. Ke2 {[%emt 0:00:03]} Rd8 {[%emt 0:00:05]} 39. a6 {[%emt 0:00:10]} Qe5 {[%emt 0:00:23]} 40. Qb6 {[%emt 0:00:27]} Rf8 {[%emt 0:00:12]} 41. Qb4 {[%emt 0:00:15]} Rd8 {[%emt 0:00:10]} 42. Qb6 {[%emt 0:00:07]} Rf8 {[%emt 0:00:02]} 43. a7 {[%emt 0:00:06]} h6 {[%emt 0:00:22]} 44. Bd5 {[%emt 0:00:05]} Qb2+ {[%emt 0:00:10]} 45. Kf1 {[%emt 0:00:07]} Qa1+ {[%emt 0:00:10]} 46. Kg2 {[%emt 0:00:01]} Kh7 {[%emt 0:00:05]} 47. a8=Q {[%emt 0:00:10]} Rxa8 {[%emt 0:00:03]} 48. Bxa8 {[%emt 0:00:01]} Qxa8 {[%emt 0:00:02]} 49. b4 {[%emt 0:00:23]} h5 {[%emt 0:00:24]} 50. b5 {[%emt 0:00:04]} 1-0

[Event "FIDE Womens World Cup 2021"]
[Site "Sochi"]
[Date "2021.07.24"]
[Round "4.5"]
[White "Kashlinskaya, Alina"]
[Black "Saduakassova, Dinara"]
[Result "0-1"]
[ECO "E36"]
[WhiteElo "2488"]
[BlackElo "2483"]
[Annotator "ChessBase"]
[PlyCount "100"]
[EventDate "2021.07.12"]
[EventType "k.o."]
[EventCountry "RUS"]
[SourceTitle "playchess.com"]
[Source "ChessBase"]
[SourceQuality "1"]
[TimeControl "600+10"]

1. d4 {[%emt 0:00:01]} Nf6 {[%emt 0:00:01]} 2. c4 {[%emt 0:00:01]} e6 {[%emt 0:00:01]} 3. Nc3 {[%emt 0:00:01]} Bb4 {[%emt 0:00:00]} 4. Qc2 {[%emt 0:00:01]} d5 {[%emt 0:00:01]} 5. a3 {[%emt 0:00:01]} Bxc3+ {[%emt 0:00:02]} 6. Qxc3 {[%emt 0:00:01]} c5 {[%emt 0:00:02]} 7. dxc5 {[%emt 0:00:04]} O-O {[%emt 0:01:00]} 8. Nf3 {[%emt 0:00:24]} Nc6 {[%emt 0:00:27]} 9. e3 {[%emt 0:01:42]} Ne4 {[%emt 0:00:13]} 10. Qc2 {[%emt 0:00:05]} Qa5+ {[%emt 0:00:04]} 11. Nd2 {[%emt 0:01:58]} f5 {[%emt 0:02:29]} 12. cxd5 {[%emt 0:00:05]} exd5 {[%emt 0:00:01]} 13. Be2 {[%emt 0:00:18]} Qxc5 {[%emt 0:00:09]} 14. Qxc5 {[%emt 0:00:13]} Nxc5 {[%emt 0:00:02]} 15. b4 {[%emt 0:01:24]} Na4 {[%emt 0:00:44]} 16. Bd1 {[%emt 0:00:12]} Nb6 {[%emt 0:00:04]} 17. Bb2 {[%emt 0:00:36]} Be6 {[%emt 0:01:46]} 18. Nf3 {[%emt 0:00:10]} Nc4 {[%emt 0:01:04]} 19. Bc3 {[%emt 0:01:18]} f4 {[%emt 0:01:16]} 20. b5 {[%emt 0:00:01]} Ne7 {[%emt 0:00:31]} 21. Nd4 {[%emt 0:01:41]} Bd7 {[%emt 0:00:24]} 22. exf4 {[%emt 0:00:01]} Nf5 {[%emt 0:00:17]} 23. Nxf5 {[%emt 0:00:46]} Rxf5 {[%emt 0:00:12]} 24. Bg4 {[%emt 0:00:46]} Re8+ {[%emt 0:00:07]} 25. Kd1 {[%emt 0:00:03]} Rf7 {[%emt 0:00:59]} 26. Bxd7 {[%emt 0:01:14]} Rxd7 {[%emt 0:00:01]} 27. Re1 {[%emt 0:00:00]} Rf8 {[%emt 0:00:19]} 28. Bb4 {[%emt 0:00:17]} Rc8 {[%emt 0:00:50]} 29. Rc1 {[%emt 0:00:50]} d4 {[%emt 0:00:05]} 30. f5 {[%emt 0:00:01]} Kf7 {[%emt 0:00:22]} 31. Re4 {[%emt 0:00:08]} Rcc7 {[%emt 0:01:10]} 32. g4 {[%emt 0:00:06]} Rd5 {[%emt 0:00:15]} 33. a4 {[%emt 0:00:08]} Nb2+ {[%emt 0:00:02]} 34. Kd2 {[%emt 0:00:01]} Rxc1 {[%emt 0:00:02]} 35. Kxc1 {[%emt 0:00:01]} Nd3+ {[%emt 0:00:01]} 36. Kd2 {[%emt 0:00:50]} Nxb4 {[%emt 0:00:02]} 37. f4 {[%emt 0:00:01]} a6 {[%emt 0:00:36]} 38. bxa6 {[%emt 0:00:20]} Nxa6 {[%emt 0:00:23]} 39. Re6 {[%emt 0:00:01]} Nc5 {[%emt 0:00:02]} 40. Rb6 {[%emt 0:00:01]} d3 {[%emt 0:00:13]} 41. Rb4 {[%emt 0:00:01]} b6 {[%emt 0:00:15]} 42. h3 {[%emt 0:00:11]} h5 {[%emt 0:00:06]} 43. gxh5 {[%emt 0:00:11]} Kf6 {[%emt 0:00:11]} 44. Rxb6+ {[%emt 0:00:06]} Kxf5 {[%emt 0:00:01]} 45. Rb5 {[%emt 0:00:23]} Kxf4 {[%emt 0:00:14]} 46. Rb4+ {[%emt 0:00:10]} Ne4+ {[%emt 0:00:03]} 47. Kd1 {[%emt 0:00:10]} Ke3 {[%emt 0:00:04]} 48. Rb3 {[%emt 0:00:50]} Rxh5 {[%emt 0:00:17]} 49. Ra3 {[%emt 0:00:02]} Rxh3 {[%emt 0:00:05]} 50. Kc1 {[%emt 0:00:00]} Ke2 {[%emt 0:00:07]} 0-1

[Event "FIDE Womens World Cup 2021"]
[Site "Sochi"]
[Date "2021.07.24"]
[Round "4.6"]
[White "Shuvalova, Polina"]
[Black "Dzagnidze, Nana"]
[Result "1/2-1/2"]
[ECO "B91"]
[WhiteElo "2489"]
[BlackElo "2523"]
[Annotator "ChessBase"]
[PlyCount "103"]
[EventDate "2021.07.12"]
[EventType "k.o."]
[EventCountry "RUS"]
[SourceTitle "playchess.com"]
[Source "ChessBase"]
[SourceQuality "1"]
[TimeControl "600+10"]

1. e4 {[%emt 0:00:02]} c5 {[%emt 0:00:01]} 2. Nf3 {[%emt 0:00:02]} d6 {[%emt 0:00:01]} 3. d4 {[%emt 0:00:01]} cxd4 {[%emt 0:00:02]} 4. Nxd4 {[%emt 0:00:02]} Nf6 {[%emt 0:00:01]} 5. Nc3 {[%emt 0:00:01]} a6 {[%emt 0:00:01]} 6. g3 {[%emt 0:00:02]} e5 {[%emt 0:00:02]} 7. Nb3 {[%emt 0:00:02]} Be7 {[%emt 0:00:07]} 8. Bg5 {[%emt 0:00:02]} Nbd7 {[%emt 0:00:01]} 9. a4 {[%emt 0:00:02]} b6 {[%emt 0:00:01]} 10. Bc4 {[%emt 0:00:03]} Bb7 {[%emt 0:00:03]} 11. Qd3 {[%emt 0:00:08]} O-O {[%emt 0:00:14]} 12. O-O {[%emt 0:00:03]} Qc7 {[%emt 0:00:43]} 13. Bxf6 {[%emt 0:01:59]} Nxf6 {[%emt 0:00:03]} 14. Rfe1 {[%emt 0:00:11]} Rfc8 {[%emt 0:00:14]} 15. Nd2 {[%emt 0:00:03]} Qc5 {[%emt 0:00:07]} 16. Bb3 {[%emt 0:00:17]} Rd8 {[%emt 0:00:24]} 17. Rad1 {[%emt 0:00:06]} Bf8 {[%emt 0:03:21]} 18. Qc4 {[%emt 0:00:40]} d5 {[%emt 0:01:14]} 19. exd5 {[%emt 0:01:04]} Nxd5 {[%emt 0:00:03]} 20. Qxc5 {[%emt 0:03:01]} Bxc5 {[%emt 0:00:04]} 21. Nxd5 {[%emt 0:01:37]} Bxd5 {[%emt 0:00:02]} 22. Bxd5 {[%emt 0:00:57]} Rxd5 {[%emt 0:00:02]} 23. Nb3 {[%emt 0:00:15]} Rxd1 {[%emt 0:01:59]} 24. Rxd1 {[%emt 0:00:01]} Be7 {[%emt 0:00:04]} 25. Rd7 {[%emt 0:00:20]} Kf8 {[%emt 0:00:09]} 26. Rb7 {[%emt 0:00:05]} Bd8 {[%emt 0:00:07]} 27. c3 {[%emt 0:00:22]} Rc8 {[%emt 0:00:15]} 28. Nd2 {[%emt 0:00:49]} Rc6 {[%emt 0:00:58]} 29. Kf1 {[%emt 0:00:17]} Bc7 {[%emt 0:00:32]} 30. Ra7 {[%emt 0:00:17]} b5 {[%emt 0:01:25]} 31. axb5 {[%emt 0:00:16]} axb5 {[%emt 0:00:01]} 32. Rb7 {[%emt 0:00:04]} Bb6 {[%emt 0:00:02]} 33. h4 {[%emt 0:00:35]} h5 {[%emt 0:00:18]} 34. Ke2 {[%emt 0:00:01]} f6 {[%emt 0:01:13]} 35. Ne4 {[%emt 0:01:18]} b4 {[%emt 0:00:16]} 36. f3 {[%emt 0:00:35]} bxc3 {[%emt 0:00:05]} 37. bxc3 {[%emt 0:00:01]} Bd8 {[%emt 0:00:19]} 38. Kd3 {[%emt 0:00:06]} f5 {[%emt 0:00:15]} 39. Nf2 {[%emt 0:00:26]} f4 {[%emt 0:00:26]} 40. gxf4 {[%emt 0:00:01]} Bxh4 {[%emt 0:00:02]} 41. Nh3 {[%emt 0:00:03]} Bf6 {[%emt 0:00:34]} 42. fxe5 {[%emt 0:00:25]} Bxe5 {[%emt 0:00:03]} 43. c4 {[%emt 0:00:02]} Bf6 {[%emt 0:00:11]} 44. Nf4 {[%emt 0:00:24]} h4 {[%emt 0:00:11]} 45. c5 {[%emt 0:00:09]} Be5 {[%emt 0:00:11]} 46. Nh3 {[%emt 0:00:22]} Rxc5 {[%emt 0:00:19]} 47. Ng5 {[%emt 0:00:04]} Ra5 {[%emt 0:00:11]} 48. Ke4 {[%emt 0:00:02]} Bf6 {[%emt 0:00:06]} 49. Nh7+ {[%emt 0:00:18]} Kg8 {[%emt 0:00:05]} 50. Nxf6+ {[%emt 0:00:02]} gxf6 {[%emt 0:00:01]} 51. Kf4 {[%emt 0:00:02]} Rg5 {[%emt 0:00:07]} 52. Rb1 {[%emt 0:00:06]} 1/2-1/2

[Event "FIDE Womens World Cup 2021"]
[Site "Sochi"]
[Date "2021.07.24"]
[Round "4.6"]
[White "Saduakassova, Dinara"]
[Black "Kashlinskaya, Alina"]
[Result "1-0"]
[ECO "A56"]
[WhiteElo "2483"]
[BlackElo "2488"]
[Annotator "ChessBase"]
[PlyCount "69"]
[EventDate "2021.07.12"]
[EventType "k.o."]
[EventCountry "RUS"]
[SourceTitle "playchess.com"]
[Source "ChessBase"]
[SourceQuality "1"]
[TimeControl "600+10"]

1. d4 {[%emt 0:00:02]} Nf6 {[%emt 0:00:00]} 2. c4 {[%emt 0:00:01]} c5 {[%emt 0:00:01]} 3. Nf3 {[%emt 0:00:08]} cxd4 {[%emt 0:00:02]} 4. Nxd4 {[%emt 0:00:01]} e5 {[%emt 0:00:05]} 5. Nb5 {[%emt 0:00:35]} d5 {[%emt 0:00:03]} 6. cxd5 {[%emt 0:00:26]} a6 {[%emt 0:00:53]} 7. N5c3 {[%emt 0:00:16]} Bc5 {[%emt 0:00:03]} 8. e3 {[%emt 0:00:23]} O-O {[%emt 0:00:07]} 9. Be2 {[%emt 0:00:11]} b5 {[%emt 0:02:37]} 10. Nd2 {[%emt 0:00:12]} Bb7 {[%emt 0:00:28]} 11. Nde4 {[%emt 0:00:57]} Nxe4 {[%emt 0:00:11]} 12. Nxe4 {[%emt 0:00:06]} Bb6 {[%emt 0:00:17]} 13. O-O {[%emt 0:00:32]} f5 {[%emt 0:00:07]} 14. Nc3 {[%emt 0:00:55]} Nd7 {[%emt 0:00:20]} 15. e4 {[%emt 0:00:30]} f4 {[%emt 0:00:05]} 16. Bg4 {[%emt 0:00:44]} Rf6 {[%emt 0:00:01]} 17. a4 {[%emt 0:01:24]} b4 {[%emt 0:00:22]} 18. a5 {[%emt 0:00:15]} Ba7 {[%emt 0:00:01]} 19. Na4 {[%emt 0:00:05]} Bd4 {[%emt 0:03:27]} 20. Bd2 {[%emt 0:00:32]} Nf8 {[%emt 0:00:41]} 21. Bxb4 {[%emt 0:00:23]} Rh6 {[%emt 0:00:02]} 22. Ra3 {[%emt 0:00:23]} Ng6 {[%emt 0:00:24]} 23. Bc5 {[%emt 0:00:22]} Qg5 {[%emt 0:00:23]} 24. Be6+ {[%emt 0:01:15]} Kh8 {[%emt 0:00:01]} 25. Qg4 {[%emt 0:00:05]} Qd8 {[%emt 0:00:18]} 26. Bxd4 {[%emt 0:00:27]} exd4 {[%emt 0:00:03]} 27. Nc5 {[%emt 0:00:09]} Bc8 {[%emt 0:00:24]} 28. b4 {[%emt 0:00:58]} Bxe6 {[%emt 0:01:25]} 29. Nxe6 {[%emt 0:00:03]} Qe7 {[%emt 0:00:28]} 30. Rh3 {[%emt 0:00:22]} Ne5 {[%emt 0:00:39]} 31. Qxf4 {[%emt 0:00:02]} Rxh3 {[%emt 0:00:03]} 32. Qxe5 {[%emt 0:00:20]} Rd3 {[%emt 0:01:00]} 33. d6 {[%emt 0:00:09]} Qa7 {[%emt 0:00:01]} 34. Qd5 {[%emt 0:00:16]} h6 {[%emt 0:00:25]} 35. d7 {[%emt 0:00:05]} 1-0

[Event "FIDE Womens World Cup 2021"]
[Site "Sochi"]
[Date "2021.07.25"]
[Round "5.1"]
[White "Goryachkina, Aleksandra"]
[Black "Saduakassova, Dinara"]
[Result "1/2-1/2"]
[ECO "E37"]
[WhiteElo "2596"]
[BlackElo "2483"]
[Annotator "ChessBase"]
[PlyCount "85"]
[EventDate "2021.07.12"]
[EventType "k.o."]
[EventCountry "RUS"]
[SourceTitle "playchess.com"]
[Source "ChessBase"]
[SourceQuality "1"]
[TimeControl "40/5400+30:1800+30"]

1. d4 {[%emt 0:00:09]} Nf6 {[%emt 0:00:08]} 2. c4 {[%emt 0:00:10]} e6 {[%emt 0:00:05]} 3. Nc3 {[%emt 0:00:37]} Bb4 {[%emt 0:00:08]} 4. Qc2 {[%emt 0:00:18]} d5 {[%emt 0:00:31]} 5. a3 {[%emt 0:00:32]} Bxc3+ {[%emt 0:00:17]} 6. Qxc3 {[%emt 0:00:06]} Ne4 {[%emt 0:00:16]} 7. Qc2 {[%emt 0:00:34]} c5 {[%emt 0:00:35]} 8. dxc5 {[%emt 0:01:35]} Nc6 {[%emt 0:01:04]} 9. Nf3 {[%emt 0:01:05]} Qa5+ {[%emt 0:01:28]} 10. Bd2 {[%emt 0:00:33]} Qxc5 {[%emt 0:00:17]} 11. e3 {[%emt 0:00:19]} Nxd2 {[%emt 0:00:10]} 12. Nxd2 {[%emt 0:00:19]} dxc4 {[%emt 0:00:17]} 13. Bxc4 {[%emt 0:02:52]} Qe7 {[%emt 0:01:07]} 14. O-O {[%emt 0:03:58]} O-O {[%emt 0:00:51]} 15. b4 {[%emt 0:01:13]} Bd7 {[%emt 0:11:14]} 16. b5 {[%emt 0:00:23]} Ne5 {[%emt 0:03:53]} 17. Be2 {[%emt 0:01:05]} f6 {[%emt 0:06:56]} 18. Qe4 {[%emt 0:16:31]} Be8 {[%emt 0:02:10]} 19. f4 {[%emt 0:03:11]} Bg6 {[%emt 0:01:18]} 20. Qb4 {[%emt 0:01:00]} Qxb4 {[%emt 0:00:36]} 21. axb4 {[%emt 0:00:02]} Bd3 {[%emt 0:09:41]} 22. Kf2 {[%emt 0:08:20]} Bxe2 {[%emt 0:03:21]} 23. Kxe2 {[%emt 0:00:07]} Nf7 {[%emt 0:01:56]} 24. Ne4 {[%emt 0:04:12]} b6 {[%emt 0:06:33]} 25. Rfd1 {[%emt 0:04:46]} f5 {[%emt 0:00:42]} 26. Nf2 {[%emt 0:13:59]} e5 {[%emt 0:06:45]} 27. Rd7 {[%emt 0:04:07]} Rfe8 {[%emt 0:04:23]} 28. g3 {[%emt 0:01:44]} exf4 {[%emt 0:08:31]} 29. gxf4 {[%emt 0:00:05]} Rec8 {[%emt 0:00:56]} 30. Ra2 {[%emt 0:05:44]} h6 {[%emt 0:01:18]} 31. Nd3 {[%emt 0:02:54]} Rd8 {[%emt 0:01:02]} 32. Rxd8+ {[%emt 0:04:17]} Rxd8 {[%emt 0:00:23]} 33. Rxa7 {[%emt 0:00:24]} Nd6 {[%emt 0:01:36]} 34. Rc7 {[%emt 0:07:30]} Nxb5 {[%emt 0:01:46]} 35. Rc6 {[%emt 0:00:58]} g5 {[%emt 0:06:32]} 36. Ne5 {[%emt 0:06:28]} gxf4 {[%emt 0:01:47]} 37. Rg6+ {[%emt 0:00:16]} Kh7 {[%emt 0:00:07]} 38. exf4 {[%emt 0:02:18]} Rd4 {[%emt 0:03:37]} 39. Rxb6 {[%emt 0:01:17]} Rxb4 {[%emt 0:00:04]} 40. Kd2 {[%emt 0:03:28]} Rd4+ {[%emt 0:01:07]} 41. Ke3 {[%emt 0:30:51]} Re4+ {[%emt 0:30:23]} 42. Kd3 {[%emt 0:00:00]} Rd4+ {[%emt 0:00:00]} 43. Ke3 {[%emt 0:00:00]} 1/2-1/2

[Event "FIDE Womens World Cup 2021"]
[Site "Sochi"]
[Date "2021.07.25"]
[Round "5.1"]
[White "Dzagnidze, Nana"]
[Black "Muzychuk, Anna"]
[Result "1/2-1/2"]
[ECO "B30"]
[WhiteElo "2523"]
[BlackElo "2527"]
[Annotator "ChessBase"]
[PlyCount "67"]
[EventDate "2021.07.12"]
[EventType "k.o."]
[EventCountry "RUS"]
[SourceTitle "playchess.com"]
[Source "ChessBase"]
[SourceQuality "1"]
[TimeControl "40/5400+30:1800+30"]

1. Nf3 {[%emt 0:00:05]} c5 {[%emt 0:00:40]} 2. e4 {[%emt 0:01:52]} Nc6 {[%emt 0:07:28]} 3. c3 {[%emt 0:03:19]} Nf6 {[%emt 0:01:24]} 4. e5 {[%emt 0:00:54]} Nd5 {[%emt 0:00:05]} 5. Bc4 {[%emt 0:01:35]} Nb6 {[%emt 0:00:41]} 6. Bb3 {[%emt 0:00:20]} d5 {[%emt 0:00:46]} 7. exd6 {[%emt 0:01:21]} Qxd6 {[%emt 0:00:16]} 8. d4 {[%emt 0:04:40]} cxd4 {[%emt 0:01:37]} 9. cxd4 {[%emt 0:00:06]} Be6 {[%emt 0:01:15]} 10. Nc3 {[%emt 0:01:38]} Bxb3 {[%emt 0:01:42]} 11. Qxb3 {[%emt 0:00:05]} e6 {[%emt 0:01:54]} 12. O-O {[%emt 0:01:07]} Be7 {[%emt 0:02:47]} 13. Rd1 {[%emt 0:02:21]} O-O {[%emt 0:12:22]} 14. d5 {[%emt 0:09:37]} Nxd5 {[%emt 0:00:36]} 15. Nxd5 {[%emt 0:07:16]} exd5 {[%emt 0:00:02]} 16. Rxd5 {[%emt 0:00:20]} Qb4 {[%emt 0:04:37]} 17. Qxb4 {[%emt 0:04:02]} Nxb4 {[%emt 0:00:39]} 18. Rb5 {[%emt 0:00:03]} b6 {[%emt 0:08:29]} 19. a3 {[%emt 0:23:43]} Nd3 {[%emt 0:02:20]} 20. Be3 {[%emt 0:00:13]} Rac8 {[%emt 0:11:08]} 21. a4 {[%emt 0:06:38]} Bc5 {[%emt 0:07:33]} 22. Rd1 {[%emt 0:12:33]} Rfd8 {[%emt 0:08:29]} 23. Kf1 {[%emt 0:00:07]} Bxe3 {[%emt 0:05:25]} 24. fxe3 {[%emt 0:00:03]} g6 {[%emt 0:00:30]} 25. a5 {[%emt 0:01:19]} bxa5 {[%emt 0:01:16]} 26. Rxa5 {[%emt 0:00:10]} Nxb2 {[%emt 0:02:41]} 27. Rxd8+ {[%emt 0:00:03]} Rxd8 {[%emt 0:00:06]} 28. Rxa7 {[%emt 0:00:09]} Re8 {[%emt 0:01:06]} 29. e4 {[%emt 0:02:34]} Nc4 {[%emt 0:03:57]} 30. Rc7 {[%emt 0:01:29]} Rxe4 {[%emt 0:01:58]} 31. Rxf7 {[%emt 0:03:52]} Ne3+ {[%emt 0:01:46]} 32. Kf2 {[%emt 0:02:29]} Kxf7 {[%emt 0:01:01]} 33. Ng5+ {[%emt 0:00:07]} Kg7 {[%emt 0:00:06]} 34. Nxe4 {[%emt 0:00:04]} 1/2-1/2

[Event "FIDE Womens World Cup 2021"]
[Site "Sochi"]
[Date "2021.07.25"]
[Round "5.1"]
[White "Tan, Zhongyi"]
[Black "Lagno, Kateryna"]
[Result "1/2-1/2"]
[ECO "D86"]
[WhiteElo "2511"]
[BlackElo "2559"]
[Annotator "ChessBase"]
[PlyCount "145"]
[EventDate "2021.07.12"]
[EventType "k.o."]
[EventCountry "RUS"]
[SourceTitle "playchess.com"]
[Source "ChessBase"]
[SourceQuality "1"]
[TimeControl "40/5400+30:1800+30"]

1. d4 {[%emt 0:00:05]} Nf6 {[%emt 0:00:10]} 2. c4 {[%emt 0:00:18]} g6 {[%emt 0:00:08]} 3. Nc3 {[%emt 0:00:15]} d5 {[%emt 0:00:09]} 4. cxd5 {[%emt 0:00:17]} Nxd5 {[%emt 0:00:04]} 5. e4 {[%emt 0:00:11]} Nxc3 {[%emt 0:00:06]} 6. bxc3 {[%emt 0:00:05]} Bg7 {[%emt 0:00:03]} 7. Bc4 {[%emt 0:00:15]} c5 {[%emt 0:00:17]} 8. Ne2 {[%emt 0:00:07]} cxd4 {[%emt 0:00:38]} 9. cxd4 {[%emt 0:00:28]} Nc6 {[%emt 0:00:03]} 10. Be3 {[%emt 0:00:18]} Qa5+ {[%emt 0:00:07]} 11. Bd2 {[%emt 0:00:12]} Qa3 {[%emt 0:00:03]} 12. O-O {[%emt 0:09:05]} O-O {[%emt 0:00:42]} 13. Rb1 {[%emt 0:01:22]} Bg4 {[%emt 0:03:19]} 14. d5 {[%emt 0:19:20]} Qc5 {[%emt 0:05:35]} 15. Bd3 {[%emt 0:11:11]} Ne5 {[%emt 0:05:11]} 16. Bb4 {[%emt 0:03:28]} Qc7 {[%emt 0:02:34]} 17. h3 {[%emt 0:05:17]} Nxd3 {[%emt 0:04:44]} 18. Qxd3 {[%emt 0:00:07]} Bxe2 {[%emt 0:00:07]} 19. Qxe2 {[%emt 0:00:04]} Rfc8 {[%emt 0:41:39]} 20. Qe3 {[%emt 0:00:31]} Qd7 {[%emt 0:10:35]} 21. Rfd1 {[%emt 0:02:27]} Be5 {[%emt 0:05:20]} 22. f4 {[%emt 0:03:20]} Bd6 {[%emt 0:00:04]} 23. e5 {[%emt 0:02:42]} Bxb4 {[%emt 0:00:08]} 24. Rxb4 {[%emt 0:00:04]} b6 {[%emt 0:00:33]} 25. f5 {[%emt 0:12:26]} Qxf5 {[%emt 0:01:53]} 26. Rh4 {[%emt 0:00:51]} f6 {[%emt 0:02:55]} 27. exf6 {[%emt 0:07:42]} Qxf6 {[%emt 0:01:20]} 28. Re4 {[%emt 0:01:46]} Rc3 {[%emt 0:06:27]} 29. Qe1 {[%emt 0:00:17]} Rc7 {[%emt 0:02:11]} 30. Re6 {[%emt 0:00:28]} Qf7 {[%emt 0:00:26]} 31. Qe5 {[%emt 0:04:13]} Rac8 {[%emt 0:00:11]} 32. Re1 {[%emt 0:02:15]} Rd7 {[%emt 0:02:32]} 33. Qg5 {[%emt 0:06:06]} Qf5 {[%emt 0:01:37]} 34. Qxf5 {[%emt 0:00:32]} gxf5 {[%emt 0:00:01]} 35. Rxe7 {[%emt 0:00:13]} Rxd5 {[%emt 0:01:26]} 36. Rxa7 {[%emt 0:00:08]} Rd6 {[%emt 0:00:25]} 37. Re5 {[%emt 0:01:43]} Rf6 {[%emt 0:00:20]} 38. Kf2 {[%emt 0:02:51]} Rg6 {[%emt 0:01:24]} 39. Kf3 {[%emt 0:01:36]} Rg7 {[%emt 0:00:42]} 40. Rxg7+ {[%emt 0:01:26]} Kxg7 {[%emt 0:00:03]} 41. Rxf5 {[%emt 0:30:08]} Ra8 {[%emt 0:05:04]} 42. Rb5 {[%emt 0:00:00]} Rxa2 {[%emt 0:00:14]} 43. Rxb6 {[%emt 0:00:00]} Ra3+ {[%emt 0:00:22]} 44. Kg4 {[%emt 0:00:00]} Ra4+ {[%emt 0:00:08]} 45. Kg3 {[%emt 0:00:00]} Ra3+ {[%emt 0:00:04]} 46. Kh2 {[%emt 0:00:00]} Ra2 {[%emt 0:00:46]} 47. h4 {[%emt 0:00:00]} h5 {[%emt 0:00:38]} 48. Re6 {[%emt 0:00:00]} Ra4 {[%emt 0:01:22]} 49. Kg3 {[%emt 0:00:00]} Rg4+ {[%emt 0:00:13]} 50. Kh3 {[%emt 0:00:00]} Ra4 {[%emt 0:00:11]} 51. Re2 {[%emt 0:00:00]} Kg6 {[%emt 0:00:18]} 52. g3 {[%emt 0:00:00]} Rb4 {[%emt 0:00:49]} 53. Kg2 {[%emt 0:00:00]} Rb3 {[%emt 0:00:17]} 54. Kf2 {[%emt 0:00:00]} Ra3 {[%emt 0:01:31]} 55. Re6+ {[%emt 0:00:00]} Kg7 {[%emt 0:01:59]} 56. Re3 {[%emt 0:00:00]} Ra8 {[%emt 0:02:04]} 57. Rd3 {[%emt 0:00:00]} Kh6 {[%emt 0:05:04]} 58. Kf3 {[%emt 0:00:00]} Rf8+ {[%emt 0:00:42]} 59. Ke4 {[%emt 0:00:00]} Re8+ {[%emt 0:01:07]} 60. Kf5 {[%emt 0:00:00]} Rf8+ {[%emt 0:00:15]} 61. Ke6 {[%emt 0:00:00]} Rg8 {[%emt 0:02:03]} 62. Kf7 {[%emt 0:00:00]} Rg7+ {[%emt 0:00:04]} 63. Kf8 {[%emt 0:00:00]} Rg4 {[%emt 0:00:26]} 64. Rf3 {[%emt 0:00:00]} Rg6 {[%emt 0:01:17]} 65. Re3 {[%emt 0:00:00]} Rg4 {[%emt 0:00:20]} 66. Kf7 {[%emt 0:00:00]} Rg7+ {[%emt 0:00:37]} 67. Kf6 {[%emt 0:00:00]} Rg6+ {[%emt 0:00:18]} 68. Kf5 {[%emt 0:00:00]} Rg4 {[%emt 0:00:10]} 69. Rd3 {[%emt 0:00:00]} Kh7 {[%emt 0:00:19]} 70. Rd7+ {[%emt 0:00:00]} Kh6 {[%emt 0:00:12]} 71. Rd6+ {[%emt 0:00:00]} Kh7 {[%emt 0:00:13]} 72. Rd7+ {[%emt 0:00:00]} Kh6 {[%emt 0:00:03]} 73. Rd6+ {[%emt 0:00:00]} 1/2-1/2